[Event "Titled Tuesday Blitz November 15 Early 2022"]
[White "Begunov, Konstantin"]
[Black "Winkels, Marcel"]
[WhiteFideId "4118510"]
[BlackFideId "1003887"]
[WhiteElo "2140"]
[BlackElo "1900"]
[Result "1-0"]
[Round "03"]
[TimeControl "180+1"]
[Date "2022.11.16"]
[WhiteClock "0:00:02"]
[BlackClock "0:00:01"]

1. d4 {[%clk 0:03:00]}  Nf6 {[%clk 0:02:58]} 2. c4 {[%clk 0:03:00]}  g6 {[%clk 0:02:58]} 3. f3 {[%clk 0:02:36]}  c5 {[%clk 0:02:52]} 4. dxc5 {[%clk 0:02:34]}  Qa5+ {[%clk 0:02:42]} 5. Nc3 {[%clk 0:02:35]}  Qxc5 {[%clk 0:02:43]} 6. e4 {[%clk 0:02:35]}  d6 {[%clk 0:02:42]} 7. Qd3 {[%clk 0:02:32]}  Bg7 {[%clk 0:02:38]} 8. Be3 {[%clk 0:02:33]}  Qc6 {[%clk 0:02:31]} 9. Nge2 {[%clk 0:02:16]}  O-O {[%clk 0:02:29]} 10. Nd4 {[%clk 0:02:16]}  Qd7 {[%clk 0:02:22]} 11. Be2 {[%clk 0:02:13]}  Nc6 {[%clk 0:02:21]} 12. O-O {[%clk 0:02:13]}  b6 {[%clk 0:02:20]} 13. Rac1 {[%clk 0:02:06]}  Nxd4 {[%clk 0:02:19]} 14. Bxd4 {[%clk 0:02:06]}  Bb7 {[%clk 0:02:19]} 15. Nd5 {[%clk 0:01:49]}  Nxd5 {[%clk 0:02:03]} 16. exd5 {[%clk 0:01:48]}  Bxd4+ {[%clk 0:01:55]} 17. Qxd4 {[%clk 0:01:49]}  Rac8 {[%clk 0:01:54]} 18. f4 {[%clk 0:01:46]}  Qc7 {[%clk 0:01:52]} 19. Kh1 {[%clk 0:01:42]}  Qc5 {[%clk 0:01:51]} 20. Qd2 {[%clk 0:01:42]}  b5 {[%clk 0:01:47]} 21. b4 {[%clk 0:01:29]}  Qb6 {[%clk 0:01:35]} 22. cxb5 {[%clk 0:01:29]}  Rxc1 {[%clk 0:01:13]} 23. Rxc1 {[%clk 0:01:28]}  Qf2 {[%clk 0:01:13]} 24. Rf1 {[%clk 0:01:19]}  Qb6 {[%clk 0:01:08]} 25. f5 {[%clk 0:01:16]}  Kg7 {[%clk 0:01:06]} 26. fxg6 {[%clk 0:01:05]}  hxg6 {[%clk 0:01:03]} 27. a4 {[%clk 0:01:04]}  Rc8 {[%clk 0:00:49]} 28. a5 {[%clk 0:01:02]}  Qc7 {[%clk 0:00:48]} 29. a6 {[%clk 0:00:53]}  Ba8 {[%clk 0:00:47]} 30. Bf3 {[%clk 0:00:46]}  Qc3 {[%clk 0:00:45]} 31. Qg5 {[%clk 0:00:38]}  Qc4 {[%clk 0:00:32]} 32. Re1 {[%clk 0:00:32]}  Qxb4 {[%clk 0:00:25]} 33. Qxe7 {[%clk 0:00:29]}  Qc5 {[%clk 0:00:18]} 34. h3 {[%clk 0:00:24]}  Bxd5 {[%clk 0:00:16]} 35. Bxd5 {[%clk 0:00:15]}  Qxd5 {[%clk 0:00:15]} 36. Qxa7 {[%clk 0:00:15]}  Rc2 {[%clk 0:00:13]} 37. Rg1 {[%clk 0:00:13]}  Qxb5 {[%clk 0:00:12]} 38. Qa8 {[%clk 0:00:10]}  Ra2 {[%clk 0:00:09]} 39. a7 {[%clk 0:00:03]}  Qb6 {[%clk 0:00:08]} 40. Qd5 {[%clk 0:00:03]}  Rxa7 {[%clk 0:00:06]} 41. Rf1 {[%clk 0:00:03]}  Qc5 {[%clk 0:00:04]} 42. Qf3 {[%clk 0:00:02]}  Rd7 {[%clk 0:00:03]} 43. Qf6+ {[%clk 0:00:02]}  Kg8 {[%clk 0:00:03]} 44. Rf4 {[%clk 0:00:02]}  Qe5 {[%clk 0:00:03]} 45. h4 {[%clk 0:00:01]}  Qxf6 {[%clk 0:00:01]} 46. Rxf6 {[%clk 0:00:02]} 1-0


[Site "https://www.chess.com"]

[Event "Titled Tuesday Blitz November 15 Early 2022"]
[White "Boros, Denes"]
[Black "Korelskiy, Egor"]
[WhiteFideId "722340"]
[BlackFideId "34329064"]
[WhiteElo "2464"]
[BlackElo "2043"]
[Result "1-0"]
[Round "03"]
[TimeControl "180+1"]
[Date "2022.11.16"]
[WhiteClock "0:01:09"]
[BlackClock "0:00:19"]

1. d4 {[%clk 0:03:00]}  d5 {[%clk 0:02:58]} 2. Nc3 {[%clk 0:03:01]}  Nf6 {[%clk 0:02:58]} 3. Nf3 {[%clk 0:03:02]}  e6 {[%clk 0:02:57]} 4. Bg5 {[%clk 0:03:02]}  c5 {[%clk 0:02:56]} 5. e4 {[%clk 0:03:01]}  Be7 {[%clk 0:02:31]} 6. exd5 {[%clk 0:02:46]}  exd5 {[%clk 0:02:26]} 7. dxc5 {[%clk 0:02:45]}  O-O {[%clk 0:02:21]} 8. Bd3 {[%clk 0:02:45]}  h6 {[%clk 0:02:16]} 9. Bh4 {[%clk 0:02:41]}  Bxc5 {[%clk 0:02:04]} 10. O-O {[%clk 0:02:34]}  Be6 {[%clk 0:01:57]} 11. h3 {[%clk 0:02:17]}  Nc6 {[%clk 0:01:55]} 12. Ne2 {[%clk 0:02:17]}  Be7 {[%clk 0:01:52]} 13. Ned4 {[%clk 0:02:14]}  Qd7 {[%clk 0:01:50]} 14. Re1 {[%clk 0:02:06]}  Rae8 {[%clk 0:01:31]} 15. Bb5 {[%clk 0:01:59]}  Qc8 {[%clk 0:01:08]} 16. c3 {[%clk 0:01:33]}  a6 {[%clk 0:01:05]} 17. Ba4 {[%clk 0:01:31]}  b5 {[%clk 0:00:56]} 18. Bc2 {[%clk 0:01:30]}  Na5 {[%clk 0:00:52]} 19. Ne5 {[%clk 0:01:15]}  Nc4 {[%clk 0:00:38]} 20. Bxf6 {[%clk 0:01:09]}  Bxf6 {[%clk 0:00:20]} 21. Qd3 {[%clk 0:01:09]}  g6 {[%clk 0:00:19]} 22. Nxg6 {[%clk 0:01:10]}  Nxb2 {[%clk 0:00:19]} 23. Ne7+ {[%clk 0:01:09]} 1-0


[Site "https://www.chess.com"]

[Event "Titled Tuesday Blitz November 15 Early 2022"]
[White "Buksa, Nataliya"]
[Black "Artemenko, Oleg"]
[WhiteFideId "14123622"]
[BlackFideId "14201798"]
[WhiteElo "2568"]
[BlackElo "2851"]
[Result "1-0"]
[Round "03"]
[TimeControl "180+1"]
[Date "2022.11.16"]
[WhiteClock "0:01:01"]
[BlackClock "0:00:06"]

1. d4 {[%clk 0:03:00]}  Nf6 {[%clk 0:02:58]} 2. Nc3 {[%clk 0:03:00]}  d5 {[%clk 0:02:54]} 3. Bf4 {[%clk 0:03:00]}  Bf5 {[%clk 0:02:47]} 4. e3 {[%clk 0:02:59]}  a6 {[%clk 0:02:45]} 5. Nf3 {[%clk 0:03:00]}  e6 {[%clk 0:02:43]} 6. Ne5 {[%clk 0:03:00]}  h5 {[%clk 0:02:40]} 7. Bd3 {[%clk 0:02:58]}  Bxd3 {[%clk 0:02:40]} 8. cxd3 {[%clk 0:02:59]}  Nbd7 {[%clk 0:02:39]} 9. O-O {[%clk 0:02:59]}  Nxe5 {[%clk 0:02:38]} 10. Bxe5 {[%clk 0:02:58]}  Nd7 {[%clk 0:02:36]} 11. h3 {[%clk 0:02:55]}  Nxe5 {[%clk 0:02:34]} 12. dxe5 {[%clk 0:02:56]}  c6 {[%clk 0:02:33]} 13. d4 {[%clk 0:02:56]}  Be7 {[%clk 0:02:29]} 14. Qe2 {[%clk 0:02:52]}  Qa5 {[%clk 0:02:23]} 15. a3 {[%clk 0:02:52]}  g5 {[%clk 0:02:09]} 16. b4 {[%clk 0:02:49]}  Qd8 {[%clk 0:02:00]} 17. g3 {[%clk 0:02:49]}  Kf8 {[%clk 0:01:37]} 18. Kg2 {[%clk 0:02:47]}  Kg7 {[%clk 0:01:33]} 19. Rfb1 {[%clk 0:02:45]}  Qg8 {[%clk 0:01:26]} 20. a4 {[%clk 0:02:36]}  Qh7 {[%clk 0:01:18]} 21. b5 {[%clk 0:02:29]}  cxb5 {[%clk 0:01:12]} 22. axb5 {[%clk 0:02:28]}  Rhc8 {[%clk 0:01:10]} 23. Rb3 {[%clk 0:02:12]}  a5 {[%clk 0:01:04]} 24. Kh2 {[%clk 0:01:26]}  Bb4 {[%clk 0:00:56]} 25. Rc1 {[%clk 0:01:20]}  Rc4 {[%clk 0:00:51]} 26. Na2 {[%clk 0:01:17]}  Rxc1 {[%clk 0:00:48]} 27. Nxc1 {[%clk 0:01:17]}  Rc8 {[%clk 0:00:47]} 28. Nd3 {[%clk 0:01:17]}  Be7 {[%clk 0:00:39]} 29. Nc5 {[%clk 0:01:11]}  Bxc5 {[%clk 0:00:36]} 30. Rc3 {[%clk 0:01:11]}  Kh6 {[%clk 0:00:19]} 31. dxc5 {[%clk 0:01:09]}  Qe4 {[%clk 0:00:13]} 32. c6 {[%clk 0:01:04]}  Qxe5 {[%clk 0:00:06]} 33. cxb7 {[%clk 0:01:01]} 1-0


[Site "https://www.chess.com"]

[Event "Titled Tuesday Blitz November 15 Early 2022"]
[White "Bulatova, Kamaliya"]
[Black "Tymrakiewicz, Rafal"]
[WhiteFideId "34111546"]
[BlackFideId "1108832"]
[WhiteElo "2039"]
[BlackElo "2138"]
[Result "0-1"]
[Round "03"]
[TimeControl "180+1"]
[Date "2022.11.16"]
[WhiteClock "0:00:13"]
[BlackClock "0:00:25"]

1. d4 {[%clk 0:02:57]}  Nf6 {[%clk 0:02:59]} 2. Bf4 {[%clk 0:02:56]}  c5 {[%clk 0:02:58]} 3. d5 {[%clk 0:02:55]}  Qb6 {[%clk 0:02:56]} 4. Nc3 {[%clk 0:02:55]}  g6 {[%clk 0:02:55]} 5. e4 {[%clk 0:02:51]}  d6 {[%clk 0:02:55]} 6. Bb5+ {[%clk 0:02:42]}  Bd7 {[%clk 0:02:49]} 7. Be2 {[%clk 0:02:37]}  Bg7 {[%clk 0:02:49]} 8. f3 {[%clk 0:02:35]}  Qxb2 {[%clk 0:02:43]} 9. Bd2 {[%clk 0:02:35]}  Qb6 {[%clk 0:02:43]} 10. Rb1 {[%clk 0:02:32]}  Qc7 {[%clk 0:02:41]} 11. g4 {[%clk 0:02:28]}  a6 {[%clk 0:02:40]} 12. a4 {[%clk 0:02:27]}  O-O {[%clk 0:02:34]} 13. h4 {[%clk 0:02:26]}  e6 {[%clk 0:02:33]} 14. h5 {[%clk 0:02:18]}  exd5 {[%clk 0:02:32]} 15. Nxd5 {[%clk 0:02:17]}  Nxd5 {[%clk 0:02:32]} 16. exd5 {[%clk 0:02:17]}  Re8 {[%clk 0:02:32]} 17. Nh3 {[%clk 0:02:12]}  b5 {[%clk 0:02:31]} 18. Ng5 {[%clk 0:01:58]}  c4 {[%clk 0:02:21]} 19. hxg6 {[%clk 0:01:40]}  hxg6 {[%clk 0:02:21]} 20. Kf1 {[%clk 0:01:27]}  Qc5 {[%clk 0:02:19]} 21. Qe1 {[%clk 0:01:19]}  Qxd5 {[%clk 0:02:13]} 22. Rd1 {[%clk 0:01:14]}  Qe5 {[%clk 0:01:54]} 23. Bb4 {[%clk 0:00:58]}  Qxg5 {[%clk 0:01:49]} 24. Bxd6 {[%clk 0:00:54]}  Nc6 {[%clk 0:01:47]} 25. f4 {[%clk 0:00:52]}  Qf6 {[%clk 0:01:39]} 26. g5 {[%clk 0:00:45]}  Qe6 {[%clk 0:01:31]} 27. Rd2 {[%clk 0:00:42]}  Re7 {[%clk 0:00:49]} 28. Qh4 {[%clk 0:00:39]}  Rae8 {[%clk 0:00:49]} 29. Qh7+ {[%clk 0:00:32]}  Kf8 {[%clk 0:00:49]} 30. Bxe7+ {[%clk 0:00:32]}  Rxe7 {[%clk 0:00:34]} 31. Qh4 {[%clk 0:00:18]}  c3 {[%clk 0:00:32]} 32. Rd3 {[%clk 0:00:16]}  Qxe2+ {[%clk 0:00:31]} 33. Kg1 {[%clk 0:00:16]}  Qe1+ {[%clk 0:00:31]} 34. Qxe1 {[%clk 0:00:15]}  Rxe1+ {[%clk 0:00:32]} 35. Kg2 {[%clk 0:00:16]}  Rxh1 {[%clk 0:00:32]} 36. Kxh1 {[%clk 0:00:17]}  Ke7 {[%clk 0:00:30]} 37. axb5 {[%clk 0:00:15]}  axb5 {[%clk 0:00:30]} 38. Kg2 {[%clk 0:00:15]}  b4 {[%clk 0:00:29]} 39. Kf3 {[%clk 0:00:14]}  Be6 {[%clk 0:00:26]} 40. Ke4 {[%clk 0:00:13]}  b3 {[%clk 0:00:25]} 41. cxb3 {[%clk 0:00:13]}  c2 {[%clk 0:00:25]} 0-1


[Site "https://www.chess.com"]

[Event "Titled Tuesday Blitz November 15 Early 2022"]
[White "Calcada, Lucas Galvan"]
[Black "Mejia, Cherry Ann"]
[WhiteFideId "22746099"]
[BlackFideId "5206880"]
[WhiteElo "1523"]
[BlackElo "2007"]
[Result "0-1"]
[Round "03"]
[TimeControl "180+1"]
[Date "2022.11.16"]
[WhiteClock "0:00:06"]
[BlackClock "0:00:06"]

1. e4 {[%clk 0:03:00]}  c5 {[%clk 0:02:59]} 2. Nf3 {[%clk 0:02:59]}  Nc6 {[%clk 0:02:59]} 3. d4 {[%clk 0:03:00]}  cxd4 {[%clk 0:03:00]} 4. Nxd4 {[%clk 0:03:01]}  Qb6 {[%clk 0:03:00]} 5. Nb3 {[%clk 0:02:58]}  Nf6 {[%clk 0:03:01]} 6. Nc3 {[%clk 0:02:58]}  e6 {[%clk 0:03:01]} 7. Be3 {[%clk 0:02:58]}  Qc7 {[%clk 0:03:01]} 8. Be2 {[%clk 0:02:58]}  a6 {[%clk 0:03:00]} 9. a4 {[%clk 0:02:55]}  b6 {[%clk 0:02:50]} 10. O-O {[%clk 0:02:52]}  Be7 {[%clk 0:02:49]} 11. f4 {[%clk 0:02:50]}  d6 {[%clk 0:02:49]} 12. Bf3 {[%clk 0:02:49]}  Bb7 {[%clk 0:02:49]} 13. g4 {[%clk 0:02:44]}  O-O {[%clk 0:02:49]} 14. g5 {[%clk 0:02:44]}  Nd7 {[%clk 0:02:49]} 15. Bg2 {[%clk 0:02:44]}  Rac8 {[%clk 0:02:44]} 16. Rf3 {[%clk 0:02:39]}  Nb4 {[%clk 0:02:26]} 17. Rh3 {[%clk 0:02:26]}  g6 {[%clk 0:02:26]} 18. Rc1 {[%clk 0:00:24]}  Nc5 {[%clk 0:02:15]} 19. Qg4 {[%clk 0:00:21]}  d5 {[%clk 0:02:10]} 20. exd5 {[%clk 0:00:15]}  Nxd5 {[%clk 0:02:06]} 21. Bd4 {[%clk 0:00:13]}  Qxf4 {[%clk 0:02:01]} 22. Rxh7 {[%clk 0:00:13]}  e5 {[%clk 0:00:42]} 23. Qh3 {[%clk 0:00:12]}  f6 {[%clk 0:00:15]} 24. Rh8+ {[%clk 0:00:12]}  Kf7 {[%clk 0:00:15]} 25. Qh7+ {[%clk 0:00:12]}  Ke8 {[%clk 0:00:15]} 26. Qxg6+ {[%clk 0:00:12]}  Kd7 {[%clk 0:00:14]} 27. Rxf8 {[%clk 0:00:10]}  Rxf8 {[%clk 0:00:13]} 28. Rf1 {[%clk 0:00:09]}  Qxg5 {[%clk 0:00:11]} 29. Qxg5 {[%clk 0:00:06]}  fxg5 {[%clk 0:00:12]} 30. Bxe5 {[%clk 0:00:05]}  Nxc3 {[%clk 0:00:09]} 31. Bxc3 {[%clk 0:00:05]}  Bxg2 {[%clk 0:00:08]} 32. Kxg2 {[%clk 0:00:06]}  Rxf1 {[%clk 0:00:05]} 33. Kxf1 {[%clk 0:00:05]}  Nxa4 {[%clk 0:00:05]} 34. Bd2 {[%clk 0:00:05]}  Nxb2 {[%clk 0:00:04]} 35. Bc1 {[%clk 0:00:06]}  Nc4 {[%clk 0:00:05]} 36. Ke2 {[%clk 0:00:06]}  a5 {[%clk 0:00:05]} 37. Kd3 {[%clk 0:00:06]}  Ne5+ {[%clk 0:00:05]} 38. Ke4 {[%clk 0:00:06]}  Ke6 {[%clk 0:00:06]} 39. h3 {[%clk 0:00:06]}  Nd7 {[%clk 0:00:06]} 0-1


[Site "https://www.chess.com"]

[Event "Titled Tuesday Blitz November 15 Early 2022"]
[White "Cheparinov, Ivan"]
[Black "Gheorghiu, Calin"]
[WhiteFideId "2905540"]
[BlackFideId "1200305"]
[WhiteElo "2622"]
[BlackElo "2225"]
[Result "1-0"]
[Round "03"]
[TimeControl "180+1"]
[Date "2022.11.16"]
[WhiteClock "0:01:29"]
[BlackClock "0:00:01"]

1. e4 {[%clk 0:03:00]}  e6 {[%clk 0:02:55]} 2. d4 {[%clk 0:03:00]}  d5 {[%clk 0:02:55]} 3. Nc3 {[%clk 0:03:00]}  Bb4 {[%clk 0:02:54]} 4. e5 {[%clk 0:03:00]}  c5 {[%clk 0:02:53]} 5. a3 {[%clk 0:02:53]}  Bxc3+ {[%clk 0:02:53]} 6. bxc3 {[%clk 0:02:54]}  Qc7 {[%clk 0:02:44]} 7. Qg4 {[%clk 0:02:52]}  Ne7 {[%clk 0:02:43]} 8. Bd3 {[%clk 0:02:46]}  cxd4 {[%clk 0:02:27]} 9. Ne2 {[%clk 0:02:44]}  dxc3 {[%clk 0:02:23]} 10. Qxg7 {[%clk 0:02:44]}  Rg8 {[%clk 0:02:23]} 11. Qxh7 {[%clk 0:02:44]}  Nd7 {[%clk 0:02:13]} 12. Bf4 {[%clk 0:02:31]}  Nc5 {[%clk 0:01:49]} 13. O-O {[%clk 0:02:17]}  Bd7 {[%clk 0:01:45]} 14. Bg3 {[%clk 0:02:11]}  Nxd3 {[%clk 0:01:20]} 15. Qxd3 {[%clk 0:02:06]}  Rc8 {[%clk 0:01:13]} 16. Rab1 {[%clk 0:02:02]}  a6 {[%clk 0:01:10]} 17. Nd4 {[%clk 0:01:57]}  Qc4 {[%clk 0:00:28]} 18. Qe3 {[%clk 0:01:52]}  Nc6 {[%clk 0:00:21]} 19. Nxc6 {[%clk 0:01:44]}  Bxc6 {[%clk 0:00:20]} 20. Rb4 {[%clk 0:01:42]}  Qa2 {[%clk 0:00:10]} 21. Qxc3 {[%clk 0:01:41]}  d4 {[%clk 0:00:09]} 22. Rxd4 {[%clk 0:01:36]}  Rg5 {[%clk 0:00:06]} 23. Rfd1 {[%clk 0:01:33]}  Kf8 {[%clk 0:00:03]} 24. Ra1 {[%clk 0:01:30]}  Qxa1+ {[%clk 0:00:01]} 25. Qxa1 {[%clk 0:01:29]} 1-0


[Site "https://www.chess.com"]

[Event "Titled Tuesday Blitz November 15 Early 2022"]
[White "D`Arruda, Ricardo D."]
[Black "Tarigan, Gilbert Elroy"]
[WhiteFideId "100692"]
[BlackFideId "7108133"]
[WhiteElo "2488"]
[BlackElo "2284"]
[Result "0-1"]
[Round "03"]
[TimeControl "180+1"]
[Date "2022.11.16"]
[WhiteClock "0:01:36"]
[BlackClock "0:01:28"]

1. d4 {[%clk 0:02:59]}  Nf6 {[%clk 0:02:52]} 2. Nf3 {[%clk 0:02:59]}  c5 {[%clk 0:02:51]} 3. d5 {[%clk 0:02:57]}  e6 {[%clk 0:02:50]} 4. Nc3 {[%clk 0:02:58]}  b5 {[%clk 0:02:41]} 5. e4 {[%clk 0:02:52]}  b4 {[%clk 0:02:38]} 6. e5 {[%clk 0:02:52]}  bxc3 {[%clk 0:02:35]} 7. exf6 {[%clk 0:02:52]}  Qxf6 {[%clk 0:02:30]} 8. bxc3 {[%clk 0:02:51]}  Be7 {[%clk 0:02:21]} 9. d6 {[%clk 0:02:39]}  Bxd6 {[%clk 0:02:19]} 10. Qxd6 {[%clk 0:02:34]}  Qxc3+ {[%clk 0:02:13]} 11. Kd1 {[%clk 0:02:25]}  Qxa1 {[%clk 0:02:09]} 12. Bd3 {[%clk 0:02:23]}  Bb7 {[%clk 0:01:55]} 13. Qc7 {[%clk 0:02:03]}  Bxf3+ {[%clk 0:01:48]} 14. gxf3 {[%clk 0:02:04]}  O-O {[%clk 0:01:49]} 15. Qxc5 {[%clk 0:01:51]}  Nc6 {[%clk 0:01:47]} 16. Rg1 {[%clk 0:01:46]}  Rac8 {[%clk 0:01:39]} 17. Ke2 {[%clk 0:01:45]}  Qe5+ {[%clk 0:01:36]} 18. Qxe5 {[%clk 0:01:44]}  Nxe5 {[%clk 0:01:37]} 19. Bb2 {[%clk 0:01:41]}  f6 {[%clk 0:01:32]} 20. Bd4 {[%clk 0:01:35]}  Nxd3 {[%clk 0:01:30]} 21. Kxd3 {[%clk 0:01:36]}  Rc7 {[%clk 0:01:29]} 22. f4 {[%clk 0:01:35]}  Kf7 {[%clk 0:01:28]} 23. c3 {[%clk 0:01:36]}  Rb8 {[%clk 0:01:28]} 0-1


[Site "https://www.chess.com"]

[Event "Titled Tuesday Blitz November 15 Early 2022"]
[White "Darini, Pouria"]
[Black "Tang, Andrew"]
[WhiteFideId "12502200"]
[BlackFideId "2059630"]
[WhiteElo "2483"]
[BlackElo "2581"]
[Result "0-1"]
[Round "03"]
[TimeControl "180+1"]
[Date "2022.11.15"]
[WhiteClock "0:00:01"]
[BlackClock "0:01:33"]

1. e4 {[%clk 0:03:00]}  e5 {[%clk 0:02:59]} 2. Nf3 {[%clk 0:03:00]}  Nc6 {[%clk 0:02:59]} 3. Bb5 {[%clk 0:03:01]}  g6 {[%clk 0:02:59]} 4. O-O {[%clk 0:02:54]}  Bg7 {[%clk 0:02:59]} 5. c3 {[%clk 0:02:55]}  a6 {[%clk 0:02:59]} 6. Ba4 {[%clk 0:02:54]}  b5 {[%clk 0:02:59]} 7. Bc2 {[%clk 0:02:53]}  d6 {[%clk 0:03:00]} 8. d4 {[%clk 0:02:54]}  exd4 {[%clk 0:03:00]} 9. cxd4 {[%clk 0:02:47]}  Bg4 {[%clk 0:03:00]} 10. Be3 {[%clk 0:02:29]}  Bxf3 {[%clk 0:02:59]} 11. gxf3 {[%clk 0:02:29]}  Qf6 {[%clk 0:03:00]} 12. Nc3 {[%clk 0:02:08]}  Nge7 {[%clk 0:02:58]} 13. d5 {[%clk 0:01:00]}  Ne5 {[%clk 0:02:57]} 14. f4 {[%clk 0:00:30]}  Nc4 {[%clk 0:02:56]} 15. Bc1 {[%clk 0:00:31]}  O-O {[%clk 0:02:51]} 16. Rb1 {[%clk 0:00:29]}  Rfe8 {[%clk 0:02:48]} 17. Ne2 {[%clk 0:00:27]}  Qh4 {[%clk 0:02:29]} 18. b3 {[%clk 0:00:25]}  Nb6 {[%clk 0:02:29]} 19. Qd3 {[%clk 0:00:15]}  c6 {[%clk 0:02:25]} 20. dxc6 {[%clk 0:00:14]}  Nxc6 {[%clk 0:02:25]} 21. Qg3 {[%clk 0:00:08]}  Qh5 {[%clk 0:02:20]} 22. Bd1 {[%clk 0:00:06]}  Nd7 {[%clk 0:02:03]} 23. Nd4 {[%clk 0:00:03]}  Qc5 {[%clk 0:02:02]} 24. Nxc6 {[%clk 0:00:03]}  Qxc6 {[%clk 0:02:03]} 25. Bf3 {[%clk 0:00:03]}  Rac8 {[%clk 0:02:02]} 26. Be3 {[%clk 0:00:03]}  Qc2 {[%clk 0:02:01]} 27. Rbd1 {[%clk 0:00:03]}  Nf6 {[%clk 0:01:59]} 28. Rxd6 {[%clk 0:00:02]}  Nxe4 {[%clk 0:01:53]} 29. Bxe4 {[%clk 0:00:03]}  Qxe4 {[%clk 0:01:53]} 30. Rfd1 {[%clk 0:00:03]}  a5 {[%clk 0:01:52]} 31. Qg2 {[%clk 0:00:03]}  Qc2 {[%clk 0:01:52]} 32. Rd7 {[%clk 0:00:04]}  Qf5 {[%clk 0:01:45]} 33. Qd5 {[%clk 0:00:04]}  Qg4+ {[%clk 0:01:44]} 34. Qg2 {[%clk 0:00:03]}  Qe2 {[%clk 0:01:41]} 35. Qd5 {[%clk 0:00:03]}  Re6 {[%clk 0:01:41]} 36. Rd8+ {[%clk 0:00:03]}  Rxd8 {[%clk 0:01:39]} 37. Qxd8+ {[%clk 0:00:04]}  Bf8 {[%clk 0:01:39]} 38. Qd2 {[%clk 0:00:04]}  Qg4+ {[%clk 0:01:39]} 39. Kh1 {[%clk 0:00:05]}  Rd6 {[%clk 0:01:37]} 40. Bd4 {[%clk 0:00:04]}  Bg7 {[%clk 0:01:36]} 41. Re1 {[%clk 0:00:01]}  Bxd4 {[%clk 0:01:33]} 0-1


[Site "https://www.chess.com"]

[Event "Titled Tuesday Blitz November 15 Early 2022"]
[White "Deuer, Marius"]
[Black "Marchesich, Giovanni"]
[WhiteFideId "16236432"]
[BlackFideId "2824790"]
[WhiteElo "2226"]
[BlackElo "2200"]
[Result "1-0"]
[Round "03"]
[TimeControl "180+1"]
[Date "2022.11.16"]
[WhiteClock "0:01:12"]
[BlackClock "0:00:20"]

1. d4 {[%clk 0:02:53]}  d6 {[%clk 0:02:58]} 2. Nc3 {[%clk 0:02:51]}  g6 {[%clk 0:02:53]} 3. h4 {[%clk 0:02:49]}  h5 {[%clk 0:02:51]} 4. e4 {[%clk 0:02:49]}  Bg7 {[%clk 0:02:51]} 5. Nf3 {[%clk 0:02:50]}  a6 {[%clk 0:02:48]} 6. Bc4 {[%clk 0:02:50]}  e6 {[%clk 0:02:43]} 7. a4 {[%clk 0:02:48]}  Nd7 {[%clk 0:02:38]} 8. Qe2 {[%clk 0:02:47]}  Nh6 {[%clk 0:02:32]} 9. Bg5 {[%clk 0:02:45]}  Bf6 {[%clk 0:02:16]} 10. Bxh6 {[%clk 0:02:30]}  Rxh6 {[%clk 0:02:14]} 11. e5 {[%clk 0:02:31]}  Bg7 {[%clk 0:02:01]} 12. exd6 {[%clk 0:02:28]}  cxd6 {[%clk 0:01:59]} 13. O-O-O {[%clk 0:02:26]}  Qc7 {[%clk 0:01:56]} 14. Bb3 {[%clk 0:02:19]}  Nf6 {[%clk 0:01:51]} 15. Ng5 {[%clk 0:02:16]}  Kf8 {[%clk 0:01:39]} 16. f4 {[%clk 0:02:04]}  d5 {[%clk 0:01:34]} 17. g3 {[%clk 0:02:00]}  Bd7 {[%clk 0:01:32]} 18. Nf3 {[%clk 0:01:59]}  Ng4 {[%clk 0:01:27]} 19. Ne5 {[%clk 0:01:58]}  Bxe5 {[%clk 0:01:27]} 20. fxe5 {[%clk 0:01:59]}  b5 {[%clk 0:01:24]} 21. Rhf1 {[%clk 0:01:50]}  Kg7 {[%clk 0:01:18]} 22. Rf4 {[%clk 0:01:48]}  bxa4 {[%clk 0:01:10]} 23. Bxa4 {[%clk 0:01:49]}  Bb5 {[%clk 0:01:03]} 24. Bxb5 {[%clk 0:01:43]}  axb5 {[%clk 0:01:03]} 25. Qxb5 {[%clk 0:01:43]}  Ne3 {[%clk 0:00:56]} 26. Rd3 {[%clk 0:01:17]}  Ra1+ {[%clk 0:00:53]} 27. Kd2 {[%clk 0:01:17]}  Nc4+ {[%clk 0:00:53]} 28. Ke2 {[%clk 0:01:18]}  Rb1 {[%clk 0:00:42]} 29. Rdf3 {[%clk 0:01:11]}  Rxb2 {[%clk 0:00:34]} 30. Rxf7+ {[%clk 0:01:11]}  Qxf7 {[%clk 0:00:24]} 31. Rxf7+ {[%clk 0:01:12]}  Kxf7 {[%clk 0:00:25]} 32. Qd7+ {[%clk 0:01:13]}  Kf8 {[%clk 0:00:21]} 33. Qd8+ {[%clk 0:01:13]}  Kf7 {[%clk 0:00:21]} 34. Qf6+ {[%clk 0:01:13]}  Kg8 {[%clk 0:00:20]} 35. Qxe6+ {[%clk 0:01:13]}  Kh7 {[%clk 0:00:20]} 36. Qf7+ {[%clk 0:01:13]}  Kh8 {[%clk 0:00:20]} 37. Qf8+ {[%clk 0:01:12]}  Kh7 {[%clk 0:00:20]} 38. Nxd5 {[%clk 0:01:12]}  Rxc2+ {[%clk 0:00:20]} 39. Kd3 {[%clk 0:01:12]} 1-0


[Site "https://www.chess.com"]